Workbook

Sheet 表紙
AK2: №
AH3: 2025 | AJ3: 年 | AL3: 月 | AN3: 日
P4: 御見積書
D7: =内訳!B1 -> 済生会横浜市南部病院
P8: 殿
D10: 下記の通り御見積り申し上げます
S13: 見積金額合計 | AB13: ．
C14: 見積金額： | M14: .－（消費税額含む） | S14: 消費税額 | W14: =IF(W13="","",(W13*0.1)) ->  | AB14: ．
S15: 合計 | W15: =IF(W13="","",(W13+W14)) ->  | AB15: ．
C17: 工事名称： | F17: =内訳!D1 -> ５階５２６号室トイレ設置工事
AH18: 担当
C19: 見積条件 | F19: ： | G19: 別紙による
C20: 納期 | F20: ： | G20: 打合せによる
C21: 納入場所 | F21: ： | G21: 南部病院
C22: 支払条件 | F22: ： | G22: 南部病院の契約書の通り
C23: 見積有効期限 | F23: ： | G23: 60日間

Sheet 見積条件書
B1: 済生会横浜市南部病院 | P1: =内訳!$D$1 -> ５階５２６号室トイレ設置工事
B3: 見 積 条 件 書
A4: 1 | B4: 本見積書の前提は、下記事項の通りといたします。
B5: -1 | C5: 工事用電力、給排水の無償支給
B6: -2 | C6: トイレの無償使用
B7: -3 | C7: 作業時間は原則として9：00～17：00
B8: -4 | C8: 物価水準の変動により請負代金の変更が必要な場合は、ご相談させて頂きます。 | AP8: -5 | AQ8: ＩＨＩ殿発行「中央変電所建屋 屋上防水更新工事」工事仕様書Y23S1200-仕01-0により見積りました。
J13: =SUM(J4:J5) -> 0 | AP13: -2 | AQ13: 汚染土の処理費
A14: 2 | B14: 本見積書において、下記事項は別途といたします。 | AP14: -3 | AQ14: 地中障害物撤去、処分費
B15: -1 | C15: その他本見積書記載以外のもの | AP15: -4 | AQ15: 耐火被覆、屋根材、内装材、保温材等に含有するアスベストの処理費
H24: =IF(E24="","",(E24*G24)) -> 

Sheet 内訳
B1: 済生会横浜市南部病院 | D1: ５階５２６号室トイレ設置工事
A3: 符号 | B3: 名 称 | D3: 仕 様 | E3: 数量 | F3: 単位 | G3: 単価 | H3: 金 額 | I3: 摘 要
B4: 工事内訳
A5: Ａ | B5: 仮設工事 | E5: 1 | F5: 式
A6: Ｂ | B6: 建築工事 | E6: 1 | F6: 式
A7: Ｃ | B7: 給排水衛生設備工事 | E7: 1 | F7: 式
A8: Ｄ | B8: 既存汚水桝改修工事 | E8: 1 | F8: 式
A9: Ｅ | B9: 電気設備工事 | E9: 1 | F9: 式
A10: Ｆ | B10: 消防設備工事 | E10: 1 | F10: 式
A11: Ｇ | B11: 業者経費 | E11: 1 | F11: 式
C14: 小計
B16: 諸経費 | E16: 1 | F16: 式
B17: 法定福利費 | E17: 1 | F17: 式
B18: 端数調整 | E18: 1 | F18: 式
C21: 中計
C23: 消費税
C25: 合計
B26: =B1 -> 済生会横浜市南部病院 | D26: =D1 -> ５階５２６号室トイレ設置工事
A28: 符号 | B28: 名 称 | D28: 仕 様 | E28: 数量 | F28: 単位 | G28: 単価 | H28: 金 額 | I28: 摘 要
A29: Ａ | B29: =B5 -> 仮設工事 | H29: =IF(E29="","",(E29*G29)) -> 
C30: 養生費 | D30: ｼｰﾄ程度 | E30: 1 | F30: 式
C31: 安全設備費 | D31: 脚立･立馬･足場板等 | E31: 1 | F31: 式
C32: 安全管理費 | E32: 30 | F32: 日
C33: 仮設機器損料 | D33: 集塵機･掃除機･仮設照明等 | E33: 1 | F33: 式
C34: 仮設足場架け払い | D34: 900枠組（先行手摺） | E34: 75 | F34: m2
C35: メッシュシート養生 | E35: 75 | F35: m2
C36: 登り桟橋 | E36: 1 | F36: ヶ所
C37: 水平ネット | E37: 21.6 | F37: m
C38: 足場材搬出入費 | D38: 先行手摺共 | E38: 4 | F38: 台
C39: 高所作業車 | D39: 4.5m（垂直式） | E39: 3 | F39: 台
C40: 同上 回送費 | E40: 2 | F40: 回
C41: 誘導員 | E41: 5 | F41: 人工
C42: 場内小運搬費 | D42: 仮設材･資材･工具類他 | E42: 1 | F42: 式
C43: 発生材処分費 | D43: 場外処分（ｱｽﾍﾞｽﾄ材処分共） | E43: 1 | F43: 式
C44: 最終クリーニング | E44: 1 | F44: 回
C45: 片付け清掃費 | E45: 1 | F45: 式
C46: 資機材運搬費 | E46: 1 | F46: 式
C50: 計
B51: =B26 -> 済生会横浜市南部病院 | D51: =D26 -> ５階５２６号室トイレ設置工事
A53: 符号 | B53: 名 称 | D53: 仕 様 | E53: 数量 | F53: 単位 | G53: 単価 | H53: 金 額 | I53: 摘 要
A54: Ｂ | B54: =B6 -> 建築工事 | H54: =IF(E54="","",(E54*G54)) -> 
A55: 1 | B55: 解体工事 | E55: 1 | F55: 式
A56: 2 | B56: 内装工事 | E56: 1 | F56: 式
A57: 3 | B57: 建具工事 | E57: 1 | F57: 式
A58: 4 | B58: 前室間仕切り工事 | E58: 1 | F58: 式
C75: 計
B76: =B51 -> 済生会横浜市南部病院 | D76: =D51 -> ５階５２６号室トイレ設置工事
A78: 符号 | B78: 名 称 | D78: 仕 様 | E78: 数量 | F78: 単位 | G78: 単価 | H78: 金 額 | I78: 摘 要
A79: 1 | B79: 解体工事
C80: アスベスト含有検査 | D80: 天井下地ﾎﾞｰﾄﾞ･床ｼｰﾄ･巾木 | E80: 3 | F80: 検体
C81: 検体採取 | E81: 1 | F81: 人工
C82: 天井 ボード撤去（トイレ新設部分） | D82: 2層貼り（LGS下地共）≒3040x2300 | E82: 1 | F82: 式
C83: 同上（前室） | D83: 表層ﾎﾞｰﾄﾞ≒3040x1750 | E83: 1 | F83: 式
C84: 床 長尺シート撤去（同上） | D84: ≒2700x2300 | E84: 1 | F84: 式
C85: 雑撤去 | D85: ｶｰﾃﾝﾚｰﾙ･点滴ﾚｰﾙ（各2ﾍﾞｯﾄﾞ分） | E85: 1 | F85: 式
D86: 既存洗面台側板
C87: 撤去材搬出費 | E87: 1 | F87: 式
C88: 機械･工具費 | E88: 1 | F88: 式
C89: 運搬費 | E89: 1 | F89: 式
H94: =IF(G94=0," ",E94*G94) -> 
H95: =IF(G95=0," ",E95*G95) -> 
H98: =IF(G98=0," ",E98*G98) -> 
H99: =IF(G99=0," ",E99*G99) -> 
C100: 計
B101: =B76 -> 済生会横浜市南部病院 | D101: =D76 -> ５階５２６号室トイレ設置工事
A103: 符号 | B103: 名 称 | D103: 仕 様 | E103: 数量 | F103: 単位 | G103: 単価 | H103: 金 額 | I103: 摘 要
A104: 2 | B104: 内装工事
C105: 天井 ＬＧＳ下地組 | D105: 材工共 | E105: 6.3 | F105: m2
C106: 同上 捨て貼りボード貼り | D106: GB-R t=9.5 | E106: 6.3 | F106: m2
C107: 同上 岩綿吸音板貼り | D107: ｿｰﾗﾄﾝ t=12.0 | E107: 6.3 | F107: m2
C108: 同上 廻り縁 | D108: 塩ﾋﾞ ｺ型 | E108: 10 | F108: ｍ
C109: 同上 合板貼り（前室） | D109: Mｸﾛｽ合板t=12.5（900x1800） | E109: 1 | F109: 式
C110: 同上 ビニールクロス貼り（前室） | D110: 不燃（下地処理共） | E110: 1 | F110: 式
C111: 壁 ＬＧＳ下地組 | D111: LGS65 | E111: 32.4 | F111: m2
C112: 同上 開口補強 | D112: W2200xH2700（ﾏｸﾞｻ･方立部共） | E112: 1 | F112: ヶ所
C113: 壁 下地ボード貼り | D113: PBt=12.5 | E113: 45.9 | F113: m2
C114: 設備用下地合板貼り | D114: 手摺用下地共 | E114: 1 | F114: 式
C115: 跳ね上げ手摺補強 | D115: ﾗｲﾄｹﾞｰｼﾞ+ｽﾀｯﾄﾞx2（H=2700） | E115: 1 | F115: 式
C116: 同上 ビニールクロス貼り | D116: 不燃･普及品 | E116: 45.9 | F116: m2
C117: 床 床長尺シート貼り | D117: 抗菌･ﾜｯｸｽﾌﾘｰ t=2.0（下地補修共） | E117: 1 | F117: 式
C118: ソフト巾木貼り | D118: H=75 | E118: 15.7 | F118: ｍ
C119: 天井点検口 | D119: ｱﾙﾐ製450x450 | E119: 2 | F119: ヶ所
C120: 各所シーリング費 | D120: 材工共 | E120: 1 | F120: 式
C121: 雑材消耗品費 | E121: 1 | F121: 式
C122: 運搬費 | D122: 各工種 | E122: 1 | F122: 式
H124: =IF(G124=0," ",E124*G124) -> 
C125: 計
B126: =B101 -> 済生会横浜市南部病院 | D126: =D101 -> ５階５２６号室トイレ設置工事
A128: 符号 | B128: 名 称 | D128: 仕 様 | E128: 数量 | F128: 単位 | G128: 単価 | H128: 金 額 | I128: 摘 要
A129: 3 | B129: 建具工事 | H129: =IF(E129="","",(E129*G129)) -> 
C130: 化粧鋼板片引き戸 | D130: W2000xH2100 自動閉鎖装置付 | E130: 1 | F130: 組
D131: 片面戸袋仕様枠
C132: 現場施工費 | E132: 2 | F132: 人工
C133: 金物･副資材費 | E133: 1 | F133: 式
C134: 運搬搬入費 | E134: 1 | F134: 式
H143: =IF(G143=0," ",E143*G143) -> 
C150: 計
B151: =B126 -> 済生会横浜市南部病院 | D151: =D126 -> ５階５２６号室トイレ設置工事
A153: 符号 | B153: 名 称 | D153: 仕 様 | E153: 数量 | F153: 単位 | G153: 単価 | H153: 金 額 | I153: 摘 要
A154: 4 | B154: 前室間仕切り工事 | H154: =IF(E154="","",(E154*G154)) -> 
C155: アコーディオンカーテン | D155: W4400（2200x2枚）xH2200 | E155: 1 | F155: 組
D156: ｵｰﾀﾞｰ品（両端部取手なし）
C157: シリンダー鎌錠 | D157: 召し合わせ部のみ | E157: 1 | F157: ヶ所
C158: 壁面框セット | D158: 壁面両側 | E158: 2 | F158: 本
C159: ハンガーパイプ | D159: I型 | E159: 3 | F159: 本
C160: 同上 | D160: V型 | E160: 6 | F160: 本
C161: サイドブラケット | E161: 1 | F161: 組
C162: レールジョイント | E162: 1 | F162: 組
C163: 雑材消耗品費 | E163: 1 | F163: 式
C164: 現場施工費 | E164: 1 | F164: 式
C165: 運搬搬入費 | E165: 1 | F165: 式
H168: =IF(G168=0," ",E168*G168) -> 
C175: 計
B176: =B126 -> 済生会横浜市南部病院 | D176: =D126 -> ５階５２６号室トイレ設置工事
A178: 符号 | B178: 名 称 | D178: 仕 様 | E178: 数量 | F178: 単位 | G178: 単価 | H178: 金 額 | I178: 摘 要
A179: Ｃ | B179: 給排水衛生設備工事 | H179: =IF(E179="","",(E179*G179)) -> 
C180: 洋式便器（フラッシュタンク式） | D180: CFS497BP（床置壁排水） | E180: 1 | F180: 組
C181: ウォシュレット | D181: TCF5831AUR | E181: 1 | F181: 台
C182: 耐火ＶＰサニタリーベンド | D182: FSPSBS | E182: 1 | F182: 個
C183: 棚付二連紙巻き器 | D183: YH650 | E183: 1 | F183: 個
C184: ペーパーホルダー | D184: YKT100R | E184: 1 | F184: 個
C185: 便座除菌クリーナー | D185: MD-300B-PHJ | E185: 1 | F185: 個
C186: 壁掛け小形洗面器 | D186: L210C | E186: 1 | F186: 台
C187: 自動水栓一体形電気温水器 | D187: REAH03B11RS28SK | E187: 1 | F187: 台
C188: 排水金具 | D188: T6BMP（Pﾄﾗｯﾌﾟ） | E188: 1 | F188: 個
C189: アングル止水栓 | D189: TL347CU | E189: 1 | F189: 個
C190: バックハンガー | D190: TL250D | E190: 1 | F190: 個
C191: 化粧鏡 | D191: YM3580AC | E191: 1 | F191: 枚
C192: ステンレスフレキ管 | D192: φ15 | E192: 1 | F192: 本
C193: 器具類取付費 | E193: 3 | F193: 人工
C194: ビニール管 | D194: HIVPφ13 | E194: 3 | F194: 本
C195: 同上 継手･接合材 | E195: 1 | F195: 式
C196: ゲート弁 | D196: 10K | E196: 1 | F196: 個
C197: 給水配管工費 | E197: 4 | F197: 人工
C198: 排水用ライニング鋼管 | D198: DLVPφ100（5500m/本） | E198: 7 | F198: 本
C199: 同上 継手･接合材 | E199: 1 | F199: 式
C200: ↓
B201: =B176 -> 済生会横浜市南部病院 | D201: =D176 -> ５階５２６号室トイレ設置工事
A203: 符号 | B203: 名 称 | D203: 仕 様 | E203: 数量 | F203: 単位 | G203: 単価 | H203: 金 額 | I203: 摘 要
C204: 耐火ビニール管 | D204: VPφ100 | E204: 1 | F204: 本
C205: 同上 | D205: VPφ75 | E205: 1 | F205: 本
C206: 耐火ビニール管 | D206: VPφ50 | E206: 1 | F206: 本
C207: 同上 継手･接合材 | E207: 1 | F207: 式
C208: ビニール管 | D208: VPφ100 | E208: 1 | F208: 本
C209: 同上 継手･接合材 | E209: 1 | F209: 式
C210: 排水配管工費 | D210: 塗装費共 | E210: 24 | F210: 人工
C211: 支持金物類 | E211: 1 | F211: 式
C212: 支持金物取付･アンカー費 | E212: 8 | F212: 人工
C213: はね上げ手すり (可動式) | D213: T112HK7R(L=700) ﾛｯｸ付き | E213: 1 | F213: 台
C214: 同上 取付プレート | D214: T110D49R | E214: 1 | F214: 個
C215: Ｌ型手すり | D215: T112CL（700x700 前出寸法120） | E215: 1 | F215: 台
C216: 手摺取付費 | E216: 1 | F216: 式
C217: 雑材消耗品費 | E217: 1 | F217: 式
C218: 既存壁･床コア抜き | D218: 貫通部防水処理共 | E218: 5 | F218: ヶ所
C219: 同上 Ｘ線検査費 | E219: 1 | F219: 式
C220: 機械･工具費 | E220: 1 | F220: 式
C221: 運搬費 | D221: 各工種 | E221: 1 | F221: 式
C225: 計
B226: =B201 -> 済生会横浜市南部病院 | D226: =D201 -> ５階５２６号室トイレ設置工事
A228: 符号 | B228: 名 称 | D228: 仕 様 | E228: 数量 | F228: 単位 | G228: 単価 | H228: 金 額 | I228: 摘 要
A229: Ｄ | B229: 既存汚水桝改修工事 | H229: =IF(E229="","",(E229*G229)) -> 
C230: 既存汚水桝周囲掘削 | E230: 6 | F230: 人工
C231: 既存汚水桝撤去費 | E231: 1 | F231: 式
C232: 改良桝 | D232: 450x450 | E232: 3 | F232: 個
C233: 同上 設置費 | E233: 2 | F233: 人工
C234: 埋戻し | E234: 4 | F234: 人工
C235: 防臭型マンホール | D235: MCBH450 | E235: 1 | F235: 枚
C236: 同上 設置費 | E236: 2 | F236: 人工
C237: 雑材消耗品費 | E237: 1 | F237: 式
C238: 重機 | D238: ﾊﾞｯｸﾎｳ | E238: 1 | F238: 台
C239: 同上 回送費 | E239: 2 | F239: 回
C240: 運搬費 | E240: 1 | F240: 式
H248: =IF(E248="","",(E248*G248)) -> 
H249: =IF(E249="","",(E249*G249)) -> 
C250: 計
B251: =B226 -> 済生会横浜市南部病院 | D251: =D226 -> ５階５２６号室トイレ設置工事
A253: 符号 | B253: 名 称 | D253: 仕 様 | E253: 数量 | F253: 単位 | G253: 単価 | H253: 金 額 | I253: 摘 要
A254: Ｅ | B254: 電気設備工事 | H254: =IF(E254="","",(E254*G254)) -> 
C255: 照明器具（ダウンライト） | D255: LED-28013 | E255: 2 | F255: 台
C256: コンセント | D256: 2P15Ax2 | E256: 1 | F256: ヶ所
C257: 壁付き換気扇取付 | D257: 材工共（防虫網付ｳｪｻﾞｰｶﾊﾞｰ） | E257: 1 | F257: 式
C258: ナースコール盛替え | D258: 材工共 | E258: 1 | F258: 式
C259: 雑材消耗品費 | E259: 1 | F259: 式
C260: 現場施工費 | D260: 配線･器具取付 | E260: 8 | F260: 人工
C261: 回路調査費 | E261: 2 | F261: 人工
C262: 運搬費 | E262: 1 | F262: 式
H273: =IF(E273="","",(E273*G273)) -> 
H274: =IF(E274="","",(E274*G274)) -> 
C275: 計
B276: =B251 -> 済生会横浜市南部病院 | D276: =D251 -> ５階５２６号室トイレ設置工事
A278: 符号 | B278: 名 称 | D278: 仕 様 | E278: 数量 | F278: 単位 | G278: 単価 | H278: 金 額 | I278: 摘 要
A279: Ｆ | B279: 消防設備工事 | H279: =IF(E279="","",(E279*G279)) -> 
C280: スプリンクラーヘッド | D280: ｼｰﾘﾝｸﾞﾌﾟﾚｰﾄ共 | E280: 1 | F280: 個
C281: マジックジョイント | D281: 50A | E281: 1 | F281: 個
C282: 配管材 | D282: ﾌﾚｷ管 | E282: 1 | F282: 式
C283: 現場施工費 | E283: 1 | F283: 式
C284: 配管不断水凍結工事 | D284: 材工共 | E284: 1 | F284: 式
C285: 雑材消耗品費 | E285: 1 | F285: 式
C286: 運搬費 | E286: 1 | F286: 式
H290: =IF(G290=0," ",E290*G290) -> 
... 1 more rows

Sheet 単価表 (hidden)
B2: 名称 | C2: 数量 | D2: 単位 | E2: BS単価 | F2: 参考業者 | G2: 単価 | H2: 備考
B3: 誘導員費 | C3: 1 | D3: 人工 | E3: 21000 | F3: ｵﾘｴﾝﾀﾙ警備 | G3: 平日18000，休日21000
B4: ｱｽﾍﾞｽﾄ調査 | C4: 1 | D4: 検体 | E4: 38000 | F4: 関東建設興業 | G4: 38000 | H4: ｻﾝﾌﾟﾘﾝｸﾞ（人工），運搬費，書類作成，諸経費別
B5: ｱｽﾍﾞｽﾄ調査 | C5: 1 | D5: 検体 | E5: 48000 | F5: 横浜ｴﾝｼﾞﾆｱﾘﾝｸﾞ | G5: 40000 | H5: 上記全て込み
B6: 13tﾗﾌﾀｰ | C6: 1 | D6: 台 | E6: 57000 | F6: 日新 | G6: 平日50,000 | H6: 時間外1/8 ＠1時間 平均単価+1時間残業
B7: 16tﾗﾌﾀｰ | C7: 1 | D7: 台 | E7: 62000 | F7: 〃 | G7: 平日55,000
B8: 25tﾗﾌﾀｰ | C8: 1 | D8: 台 | E8: 62000 | F8: 〃 | G8: 平日55,000
B9: 50tﾗﾌﾀｰ | C9: 1 | D9: 台 | E9: 135000 | F9: 〃 | G9: 平日120,000
B10: 60t,65tﾗﾌﾀｰ | C10: 1 | D10: 台 | E10: 135000 | F10: 〃 | G10: 平日120,000
B11: 4mﾘﾌﾄ | C11: 1 | D11: 日 | E11: =G11*1.1 -> 5500 | F11: ﾚﾝﾀﾙのﾆｯｹﾝ | G11: 5000 | H11: 3100
B12: 4mﾘﾌﾄ | C12: 1 | D12: 月 | E12: 45000 | F12: 〃 | G12: 40500 | H12: 24100
B13: 5.8mﾘﾌﾄ | C13: 1 | D13: 日 | E13: 9500 | F13: 〃 | G13: 8500 | H13: 6600
B14: 5.8mﾘﾌﾄ | C14: 1 | D14: 月 | E14: 61000 | F14: 〃 | G14: 55500 | H14: 39100
B15: 9.9mﾘﾌﾄ | C15: 1 | D15: 日 | E15: 17500 | F15: 〃 | G15: 16000 | H15: 12100
B16: 9.9mﾘﾌﾄ | C16: 1 | D16: 月 | E16: 169000 | F16: 〃 | G16: 153000 | H16: 120100
B17: 運賃 | C17: 1 | D17: 回 | E17: 30000 | F17: 〃 | G17: 28000 | H17: -
B18: 9.9mﾄﾗｯｸ | C18: 1 | D18: 日 | E18: 22000 | F18: 〃 | G18: 17600 | H18: 15100
B19: 9.9mﾄﾗｯｸ | C19: 1 | D19: 月 | E19: 258000 | F19: 〃 | G19: 214500 | H19: 180100
B20: 12.2mﾄﾗｯｸ | C20: 1 | D20: 日 | E20: 22000 | F20: 〃 | G20: 17600 | H20: 15100
B21: 12.2mﾄﾗｯｸ | C21: 1 | D21: 月 | E21: 258000 | F21: 〃 | G21: 214500 | H21: 180100
B22: 17mﾄﾗｯｸ | C22: 1 | D22: 日 | E22: 38000 | F22: 〃 | G22: 31100 | H22: 28100
B23: 17mﾄﾗｯｸ | C23: 1 | D23: 月 | E23: =G23*1.2 -> 378000 | F23: 〃 | G23: 315000 | H23: 280100
B24: 22mﾄﾗｯｸ | C24: 1 | D24: 日 | E24: 41000 | F24: 〃 | G24: 33400 | H24: 30100
B25: 22mﾄﾗｯｸ | C25: 1 | D25: 月 | E25: 413000 | F25: 〃 | G25: 344000 | H25: 300100
B26: 27mﾄﾗｯｸ | C26: 1 | D26: 日 | E26: 55000 | F26: 〃 | G26: 45400 | H26: 42100
B27: 27mﾄﾗｯｸ | C27: 1 | D27: 月 | E27: 420000 | F27: 〃 | G27: 344000 | H27: 360100
B28: 9.9mﾘﾌﾄﾗ | C28: 1 | D28: 日 | E28: 31000 | F28: 〃 | G28: 25400 | H28: 21100
B29: 9.9mﾘﾌﾄﾗ | C29: 1 | D29: 月 | E29: 420000 | F29: 〃 | G29: 345000 | H29: 300100
B30: 12mﾘﾌﾄﾗ | C30: 1 | D30: 日 | E30: 35000 | F30: 〃 | G30: 28400 | H30: 24100
B31: 12mﾘﾌﾄﾗ | C31: 1 | D31: 月 | E31: =G31*1.2 -> 438000 | F31: 〃 | G31: 365000 | H31: 320100
B32: 14.6mﾘﾌﾄﾗ | C32: 1 | D32: 日 | E32: 39000 | F32: 〃 | G32: 32400 | H32: 28100
B33: 14.6mﾘﾌﾄﾗ | C33: 1 | D33: 月 | E33: =G33*1.2 -> 486000 | F33: 〃 | G33: 405000 | H33: 360100
B34: 運賃 | C34: 1 | D34: 回 | E34: 15000 | F34: 〃 | G34: 10000 | H34: -
B35: 発電機（24KVA） | C35: 1 | D35: 日 | E35: 5300 | F35: 〃 | G35: 4400 | H35: 3000
B36: 発電機（24KVA） | C36: 1 | D36: 月 | E36: 45000 | F36: 〃 | G36: 37000 | H36: 24000
B37: 運賃 | C37: 1 | D37: 台 | E37: 20000 | F37: 〃 | G37: 15000 | H37: -
B38: 水中ﾎﾟﾝﾌﾟ100V | C38: 1 | D38: 日 | E38: 550 | F38: 〃 | G38: 450 | H38: -
B39: 水中ﾎﾟﾝﾌﾟ100V | C39: 1 | D39: 月 | E39: 2200 | F39: 〃 | G39: 1800 | H39: -
B40: 水中ﾎﾟﾝﾌﾟ100自 | C40: 1 | D40: 日 | E40: 650 | F40: 〃 | G40: 540 | H40: -
B41: 水中ﾎﾟﾝﾌﾟ100自 | C41: 1 | D41: 月 | E41: 3300 | F41: 〃 | G41: 2700 | H41: -
B42: 水中ﾎﾟﾝﾌﾟ200V | C42: 1 | D42: 日 | E42: 1200 | F42: 〃 | G42: 980 | H42: -
B43: 水中ﾎﾟﾝﾌﾟ200V | C43: 1 | D43: 月 | E43: 6400 | F43: 〃 | G43: 5300 | H43: -
B44: 運賃 | C44: 1 | D44: 台 | E44: 15000 | F44: 〃 | G44: 10000 | H44: -
B45: 仮設ﾊｳｽ ｺﾝﾃﾅ4坪 単棟 | C45: 1 | D45: 月 | E45: 40000 | F45: 〃 | G45: 33500 | H45: 25500
B46: 運賃 | C46: 1 | D46: 往復 | E46: 60000 | F46: 〃 | G46: 48000 | H46: -
B47: 仮設ﾊｳｽ 4坪CT54J 2連 | C47: 1 | D47: 月 | E47: 210000 | F47: 〃 | G47: 175800 | H47: 30300
B48: 運賃 | C48: 1 | D48: 往復 | E48: 130000 | F48: 〃 | G48: 108000 | H48: -
B49: 備品（長机8，折ｲｽ16，棚2) | C49: 1 | D49: 月 | E49: 12000 | F49: 〃 | G49: 10020 | H49: 7500
B50: 運賃 | C50: 1 | D50: 往復 | E50: 30000 | F50: 〃 | G50: 24000 | H50: -

Sheet 埋設物 (hidden)
B1: 掘削工事 埋設配管チェックリスト
B4: 工事名 | E4: =#REF! ->  | S4: 建設Ｇ長 | V4: Ｔ長/ＳＭ | Y4: 工事担当 | AC4: 図面添付
B6: チェック日 | E6: 2023 | J6: 年 | K6: 4 | L6: 月 | M6: 21 | N6: 日 | S6: =#REF! ->  | V6: =#REF! ->  | Y6: =#REF! -> 
B8: 工事予定 | E8: 自： | G8: =#REF! -> 
E10: 至： | G10: =#REF! -> 
B13: 掘削場所 | F13: 建物内 | M13: 建物外（近隣建屋有） | U13: 建物外（近隣建屋無）
B15: 埋設部 表層 | F15: コンクリート床・壁 | M15: アスファルト | U15: 土
B17: 埋設配管事前調査のルール
C18: ① | D18: 掘削，解体等を有する工事では，本チェックリストによる事前調査を行い，地区グループ長と協議することをルールとする
C19: ② | D19: 掘削する場合は，以下の配線・配管図面を入手し，現場調査と合わせて工事に干渉のないことを確認しなければならない
C20: ③ | D20: 図面確認・現場調査により干渉が確認されるが位置が判断できない場合，必要に応じて試掘や電磁波レーダ等の検査により確定する
B21: 項目 | H21: 図面 確認 | J21: 現地 調査 | L21: コメント | R21: 干渉の 有無 | T21: 対策 | Z21: 良否
B23: 電気配線 | D23: 幹線（200V以上） | H23: 済 | J23: 済 | L23: 掘削部分に干渉する配管が有ると想定される | R23: 有 | T23: 状況により手掘りも行い、慎重に掘削する | Z23: 良
D25: 電線（100V) | H25: 済 | J25: 済 | L25: 〃 | R25: 有 | T25: 〃 | Z25: 良
D27: 自動火災報知機 | H27: 未済 | J27: 済 | L27: 掘削部分に干渉する配管は無いと思われる | R27: 無 | T27: 埋設配管が無いと断言出来ないため慎重に掘削する | Z27: 良
D29: ＬＡＮ | H29: 未済 | J29: 済 | L29: 〃 | R29: 無 | T29: 〃 | Z29: 良
D31: ＴＥＬ | H31: 未済 | J31: 済 | L31: 〃 | R31: 無 | T31: 〃 | Z31: 良
D33: ＴＶ | H33: 未済 | J33: 済 | L33: 〃 | R33: 無 | T33: 〃 | Z33: 良
D35: セキュリティ，カメラ | H35: 未済 | J35: 済 | L35: 〃 | R35: 無 | T35: 〃 | Z35: 良
D37: その他
B39: 設備配管 | D39: 上水 | H39: 済 | J39: 済 | L39: 掘削部分に干渉する配管が有ると想定される | R39: 有 | T39: 状況により手掘りも行い、慎重に掘削する | Z39: 良
D41: 工水 | H41: 済 | J41: 済 | L41: 掘削部分に干渉する配管は無いと思われる | R41: 無 | T41: 埋設配管が無いと断言出来ないため慎重に掘削する | Z41: 良
D43: 消火栓 | H43: 未済 | J43: 済 | L43: 〃 | R43: 無 | T43: 〃 | Z43: 良
D45: 雨水 | H45: 済 | J45: 済 | L45: 〃 | R45: 無 | T45: 〃 | Z45: 良
D47: 汚水，雑排水， 工程排水 | H47: 済 | J47: 済 | L47: 掘削部分に干渉する配管が有ると想定される | R47: 有 | T47: 状況により手掘りも行い、慎重に掘削する | Z47: 良
D49: ガス | H49: 未済 | J49: 済 | L49: 掘削部分に干渉する配管は無いと思われる | R49: 無 | T49: 埋設配管が無いと断言出来ないため慎重に掘削する | Z49: 良
D51: エアー，酸素， ＣＯ２，アルゴン | H51: 未済 | J51: 済 | L51: 〃 | R51: 無 | T51: 〃 | Z51: 良
D53: その他
B55: 担当者記入欄
C56: ① | D56: 状況により手掘りも行い、慎重に掘削する。
C57: ② | D57: メンテナンスＧへ埋設配管を確認する。
C58: ③
B59: G長コメント
C60: ① | D60: メンテナンスGとの連携をお願いします。
C61: ②
C62: ③

Sheet 見積原価 (hidden)
A1: （標準様式を一部改訂）
R2: 決裁 | T2: 合議 | X2: 立案/起票
A3: 見積原価内訳表 | R3: Ｄ/ＧＡ | T3: ＤＡ | V3: 安全Ｇ長 | X3: 建設Ｇ長 | Z3: Ｔ長/ＳＭ | AB3: 見積担当
R4: =#REF! ->  | T4: =#REF! ->  | V4: =#REF! ->  | X4: =#REF! ->  | Z4: =#REF! ->  | AB4: =#REF! -> 
B7: 工事名称 | F7: =#REF! ->  | V7: 見積番号 | Y7: =#REF! -> 
B8: 発注者 | F8: =#REF! ->  | H8: =#REF! ->  | K8: 工期/納期 | N8: =#REF! ->  | Q8: ～ | R8: =#REF! ->  | V8: 工事番号 | Y8: =#REF! -> 
A9: 工事概要 | B9: 施工場所 | F9: =#REF! ->  | I9: =#REF! ->  | K9: =#REF! ->  | V9: 引渡期限 | Y9: =#REF! -> 
B10: 概略仕様 | F10: 検査棟及び製品保管庫の新設工事 | V10: 売上高 | Y10: 150000000 | AC10: 円
V11: 客先特別条件
AC16: 単位：円
A17: 区分 | B17: 仕入先 | G17: 発注内容 | O17: 数 量 | Q17: 単位 | S17: 単価 | V17: 金 額 | Z17: 備考欄
A18: 材料費 | B18: ○○社 | G18: パイプ | O18: 1 | Q18: 式 | S18: 300000 | V18: =SUM(O18*S18) -> 300000
B19: ○○社 | G19: ○○ | O19: 10 | Q19: 個 | S19: 5000 | V19: =SUM(O19*S19) -> 50000
V20: =SUM(O20*S20) -> 0
V21: =SUM(O21*S21) -> 0
A22: 小 計 | V22: =SUM(V18:Y21) -> 350000
A23: 工数費 | B23: 作業内容 | O23: 数 量 | Q23: 単位 | S23: 単価 | V23: 金 額
B24: 現場管理費 | O24: 2400 | Q24: ｈ | S24: 8000 | V24: =SUM(O24*S24) -> 19200000
B25: 見積書作成 | O25: 80 | Q25: ｈ | S25: 8000 | V25: =SUM(O25*S25) -> 640000
V26: =SUM(O26*S26) -> 0
V27: =SUM(O27*S27) -> 0
A28: 小 計 | V28: =SUM(V24:Y27) -> 19840000
A29: 外注費 | B29: 外注先(予定） | G29: 許可業種 | J29: 発注内容 | O29: 数 量 | Q29: 単位 | S29: 単価 | V29: 金 額
B30: ○○社 | G30: 屋根工事 | J30: ○○工事 | O30: 1 | Q30: 式 | S30: 115000000 | V30: =SUM(O30*S30) -> 115000000
V31: 0
V32: 0
V33: 0
V34: 0
V35: 0
V36: 0
A40: 小 計 | V40: =SUM(V30:Y39) -> 115000000
A41: 現場経費 | B41: 仕入先 | G41: 発注内容 | O41: 数 量 | Q41: 単位 | S41: 単価 | V41: 金 額
B42: ○○社 | G42: ○○現場消耗品 | O42: 100 | Q42: 個 | S42: 5000 | V42: =SUM(O42*S42) -> 500000
V43: =SUM(O43*S43) -> 0
V44: 0
V45: 0
A46: 小 計 | V46: =SUM(V42:Y45) -> 500000
A47: 安全対策費 | B47: 内容(作業内容・購入品など) | O47: 数 量 | Q47: 単位 | S47: 単価 | V47: 金 額
B48: 安全施設バリケード購入 | O48: 100 | Q48: 個 | S48: 5000 | V48: =SUM(O48*S48) -> 500000
O49: 1 | Q49: 式 | S49: 10000000 | V49: =SUM(O49*S49) -> 10000000
V50: =SUM(O50*S50) -> 0
V51: 0
V52: 0
A53: 小 計 | V53: =SUM(V48:Y52) -> 10500000
A54: 粗利益 | B54: 外注費等合計① | J54: =SUM(V22+V40+V46+V53) -> 126350000 | N54: 売上利益 | O54: 売上原価合計（a） | V54: =SUM(V22+V28+V40+V46+V53) -> 146190000 | Z54: ※下欄に利益計画または業績検討会時の想定を記載すること。
B55: 売上高（ｂ） | J55: =SUM(Y10) -> 150000000 | O55: 売上高（ｂ） | V55: =SUM(Y10) -> 150000000
B56: 粗利益（ｂ）-① | J56: =J55-J54 -> 23650000 | O56: 売上利益（ｂ）-（a） | V56: =V55-V54 -> 3810000
B57: 粗利益率 | J57: =J56/J55 -> 0.1576666667 | O57: 売上利益率 | V57: =V56/V55 -> 0.0254
A59: 計画外 | H59: 売上 | L59: 150000000 | P59: 粗利益 | T59: 25000000 | W59: 粗利益率 | AA59: =SUM(T59/L59)*100 -> 16.66666667 | AC59: ％

Sheet 受注時 (hidden)
A1: 受注決裁チェックリスト
AD2: 品質管理（使用資材の事前確認）
A3: 工 事 名 | D3: =#REF! ->  | P3: =#REF! ->  | Q3: 決裁/立案 | U3: 合議 | Y3: 立案/起票 | AD3: 工種 | AE3: 使用する主要資材等 | AI3: ch | AJ3: チェック内容 | AT3: 工種 | AU3: 使用する主要資材等 | AY3: ch | AZ3: チェック内容
A4: 基本情報 | B4: 発注者 | D4: =#REF! ->  | F4: 部門 | G4: =#REF! ->  | I4: 工期 | J4: =#REF! ->  | M4: ～ | N4: =#REF! ->  | Q4: Ｄ/ＧＡ | S4: 建設Ｇ長 | U4: ＤＡ | W4: 安全Ｇ長 | Y4: Ｔ長/ＳＭ | AA4: 見積担当 | AD4: 土工 | AE4: 鋤取・根切 | AI4: ― | AJ4: 深さ H＝ | AL4: 0.6 | AM4: m | AN4: 程度 | AT4: 外壁 | AU4: ＡＬＣ版 | AY4: ― | AZ4: t= | BA4: 125 | BB4: ㎜ | BC4: 品名・メーカー | BE4: へーベル | BH4: 旭化成建材
B5: 見積決裁日 | D5: 2025-09-25 | F5: 受注形態 | H5: =#REF! ->  | I5: 見積時との内容相違 | M5: 無 | N5: 仕様変更 | P5: 無 | Q5: =#REF! ->  | S5: =#REF! ->  | U5: =#REF! ->  | W5: =#REF! ->  | Y5: =#REF! ->  | AA5: =#REF! ->  | AE5: 埋戻・盛土 | AI5: ― | AJ5: 使用土 | AL5: 根切土 | AU5: サイディング | AY5: ― | AZ5: 種別 | BA5: 金属系 | BC5: 品名・メーカー
B6: 注文書受領 | D6: 未受領 | F6: =#REF! ->  | I6: グレード | K6: □ | L6: Ａ | M6: ■ | N6: Ｂ | O6: □ | P6: NON | S6: 2025-09-26 | U6: 2025-09-26 | W6: 2025-09-26 | Y6: 2025-09-25 | AA6: 2025-09-25 | AE6: 残土 | AI6: ― | AJ6: 処分土 | AL6: 普通土 | AP6: 処分の方法 | AQ6: 場外自由処分 | AU6: 化粧スレート | AY6: ― | AZ6: 品名・メーカー
AE7: 砕石地業 | AI7: ― | AJ7: 基礎下 t= | AL7: 50 | AM7: ㎜ | AN7: 土間下 t= | AP7: 150 | AQ7: ㎜ | AU7: 下地ボード | AY7: ― | AZ7: 無 | BB7: 種別 | BC7: 耐水石膏ボード | BG7: t= | BH7: 12.5
A8: 関係法令 | AE8: 山留 | AI8: ― | AJ8: 種別 | AK8: 単管簡易山留 | AN8: H＝ | AO8: 2.5 | AP8: m | AQ8: 500.5 | AS8: ㎡ | AU8: 胴縁 | AY8: ― | AZ8: C－100×50×20×2.3 | BE8: ＠ | BF8: 600
A9: 建設業法 | B9: 技術者の配置 | E9: 下請負代金（税込）の合計が5,000万円以上 | O9: ― | Q9: 監理技術者の配置 （主任技術者は必須） | U9: 必要 | W9: 建設工事の種類 | Z9: 内装仕上工事 | AE9: 腹起・切梁 | AI9: ― | AJ9: 無 自立 | AM9: 1 | AN9: 段 | AO9: 500.5 | AQ9: ㎡
E10: （建築一式工事は8,000万円以上） | W10: 配置技術者 | Z10: 主任技術者 | AT10: 金属製建具 | AU10: 改修工法等 | AY10: ― | AZ10: 種別 | BA10: 新設
B11: 技術者の専任 | E11: 請負代金（税込）の合計が4,500万円以上 | O11: ― | Q11: 監理技術者・主任技術者の専任 | U11: 必要 | W11: 専任非専任/既専任等 | Z11: 非専任 | AB11: 無 | AD11: 杭地業 | AE11: 地耐力 | AI11: ― | AJ11: 試験 | AK11: 標準貫入試験 | AO11: N値 | AP11: 15 | AR11: 100 | AS11: KN/㎥ | AU11: アルミサッシ | AY11: ― | AZ11: 耐風圧 | BB11: S-3 | BC11: 水密 | BD11: W-2 | BE11: 気密 | BF11: A-3 | BG11: 断熱 | BH11: H-2
E12: （建築一式工事は9,000万円以上） | W12: 配置予定者 | Z12: 廣 戸 | AE12: 既製杭 | AI12: ― | AJ12: 種別 | AK12: 支持杭 | AM12: 材料 | AN12: 鋼管杭 | AP12: 品名 | AQ12: EAZET工法 | AZ12: 遮音 | BA12: T-2 | BC12: 防火設備 | BE12: 必要 網入りガラス有
B13: 施工体制 台帳等 | E13: 下請負代金（税込）の合計が5,000万円以上 | O13: ― | Q13: 施工体制台帳・施工体系図の作成 | U13: 必要 | W13: 資 格 | Z13: 指定５年 | AE13: 地盤改良 | AI13: ― | AJ13: 種別 | AK13: 表層改良 | AM13: 100 | AN13: ㎏/㎥，Φ | AQ13: Ｌ＝ | AS13: m | AU13: スチールドア | AY13: ― | AZ13: 防火戸 | BB13: 防火設備 | BE13: 仕上 | BF13: 現場塗装
E14: （建築一式工事は8,000万円以上） | W14: 施工体制台帳等記載者 | AA14: 百岳 | AD14: 鉄筋 | AE14: 異形鉄筋 | AI14: ― | AJ14: 規格 | AK14: SD295A | AM14: D | AN14: 10～16 | AQ14: 12.5 | AS14: t | AU14: ステンレスドア | AY14: ― | AZ14: 防火戸 | BB14: 防火設備 | BE14: 仕上 | BF14: ヘアライン
A15: 労働安全衛生法 | B15: 作業主任者の選任 | C15: 高さ5m以上のコンクリート造工作物の解体、破壊作業 | O15: ― | Q15: コンクリート造の工作物の解体等作業主任者 | AA15: 必要 | AI15: ― | AJ15: 規格 | AK15: SD345 | AM15: D | AN15: 19～25 | AQ15: 10 | AS15: t | AU15: シャッター | AY15: ― | AZ15: 種別 | BA15: 重量 | BC15: 防火 | BD15: 特定防火設備 | BG15: 仕上 | BH15: 現場塗装
C16: 建築物、構築物の地上5ｍ以上の鉄骨等部材の組立等作業 | O16: ― | Q16: 建築物等の鉄骨の組立て等作業主任者 | AA16: 必要 | AE16: ガス圧接 | AI16: ― | AJ16: か所数 | AL16: 50 | AM16: か所 | AO16: 試験 | AP16: 超音波探傷試験 | AU16: 額縁 | AY16: ― | AZ16: 種別 | BA16: アルミ
C17: 高さ5ｍ以上の足場組立等作業 | O17: ― | Q17: 足場の組立て等作業主任者 | AA17: 必要 | AE17: ミルシート | AI17: ― | AJ17: 入手 | AK17: 必要
C18: 掘削面の高さ2ｍ以上の地山の掘削の作業 | O18: ― | Q18: 地山の掘削及び土止め支保工作業主任者 | AA18: 必要 | AE18: ロールマーク | AI18: ― | AJ18: 現場確認 | AL18: 必要 | AT18: ガラス | AU18: 板ガラス | AY18: ― | AZ18: 種別 | BA18: フロート | BC18: t= | BD18: 6 | BE18: 網入磨 | BG18: t= | BH18: 6.8
C19: 酸素欠乏危険場所における作業 | O19: ― | Q19: 酸素欠乏危険作業主任者 | AA19: 必要 | AE19: 配筋検査 | AI19: ― | AJ19: 確認検査機関 | AM19: 無 | AP19: 社内検査 | AQ19: 必要 | AU19: 耐熱ガラス | AY19: ― | AZ19: 品名・メーカー | BG19: t= | BH19: 12
C20: 有機溶剤の製造又は取扱 | O20: ― | Q20: 有機溶剤作業主任者 | AA20: 必要 | AU20: Low-Eガラス | AY20: ― | AZ20: 品名・メーカー | BG20: t= | BH20: 15
C21: 型わく支保工の組立て、解体の作業 | O21: ― | Q21: 型枠支保工組立て等作業主任者 | AA21: 必要 | AD21: コンクリート | AE21: 使用セメント | AI21: ― | AJ21: 種別 | AK21: 普通ポルトランド | AU21: ガラス固定 | AY21: ― | AZ21: 種別 | BA21: グレチャン
C22: 石綿若しくは石綿をその重量の 0.1％を超えて含有する製剤その他の物を取扱う作業 | O22: ― | Q22: 石綿作業主任者 | AA22: 必要 | AE22: 捨コンクリート | AI22: ― | AJ22: FC | AK22: 15 | AL22: N/㎟ | AN22: ｽﾗﾝﾌﾟ | AO22: 15 | AP22: cm | AQ22: 200 | AS22: ㎥
AE23: 土間コンクリート | AI23: ― | AJ23: FC | AK23: 21 | AL23: N/㎟ | AN23: ｽﾗﾝﾌﾟ | AO23: 15 | AP23: cm | AQ23: 200 | AS23: ㎥ | AT23: 塗装 | AU23: 吹付タイル | AY23: ― | AZ23: 種別 | BA23: アクリル | BD23: 仕上 | BE23: ローラー押え
B24: する作業等 資格を有 | C24: クレーン運転 | H24: ― | J24: 高所作業車運転 | O24: ― | Q24: 石綿取扱作業 | U24: ― | W24: 刈払(草刈）機作業 | AA24: ― | AE24: 基礎部コンクリート | AI24: ― | AJ24: FC | AK24: 24 | AL24: N/㎟ | AN24: ｽﾗﾝﾌﾟ | AO24: 15 | AP24: cm | AQ24: 200 | AS24: ㎥ | AU24: リシン吹付 | AY24: ― | AZ24: 種別 | BA24: アクリル | BD24: 仕上 | BE24: 掻き落とし
C25: 移動式クレーン運転 | H25: ― | J25: 足場組立作業 | O25: ― | Q25: チェーンソー作業 （切創防止用保護衣） | U25: ― | W25: 免許、技能講習及び 特別教育修了の確認 | AA25: 必要 | AE25: 地上部コンクリート | AI25: ― | AJ25: FC | AK25: 24 | AL25: N/㎟ | AN25: ｽﾗﾝﾌﾟ | AO25: 18 | AP25: cm | AQ25: 200 | AS25: ㎥ | AU25: スタッコ吹付 | AY25: ― | AZ25: 種別 | BA25: アクリル | BD25: 仕上 | BE25: 吹き放し
C26: 車両系運搬車運転 | H26: ― | J26: アーク溶接等作業 | O26: ― | AE26: 配合計画書 | AI26: ― | AJ26: 作成 | AK26: 必要 | AU26: 鉄部 | AY26: ― | AZ26: 種別 | BA26: ウレタン | BC26: 素地調整 | BE26: RA種 | BF26: 錆止 | BG26: 溶融亜鉛メッキ
C27: 玉掛作業 | H27: ― | J27: 電気取扱作業 | O27: ― | Q27: 酸素欠乏危険作業 | U27: ― | AE27: 受入検査 | AI27: ― | AJ27: 第三者（スランプ、空気量、塩化物量） | AQ27: 不要 | AU27: ボード面 | AY27: ― | AZ27: 種別 | BA27: アクリル | BC27: 素地調整 | BE27: RB種
B28: の作成 作業計画書 | C28: 車両系荷役運搬機械を用いる作業（安衛則151条の3） | O28: ― | Q28: 移動式クレーンを用いる作業（クレーン則66条の2） | AA28: ― | AE28: 圧縮強度試験 | AI28: ― | AJ28: １週強度 | AL28: 不要 | AO28: ４週強度 | AQ28: 必要 | AU28: 塗床材 | AY28: ― | AZ28: 品名・メーカー | BB28: ケミクリート（ＡＢＣ） | BF28: 下地処理 | BH28: 研磨
C29: 車両系建設機械を用いる作業（安衛則第155条） | O29: ― | Q29: 建築物の鉄骨の組立て等の作業（安衛則517条の2） | AA29: ―
C30: ジャッキ式つり上げ機械を用いて荷のつり上げ、つり下げを行う作業（安衛則194条の5） | O30: ― | Q30: コンクリート造の工作物の解体等の作業（安衛則517条の14） | AA30: ― | AD30: 型枠 | AE30: 普通型枠 | AI30: ― | AJ30: 種別 | AK30: 合板 | AM30: t= | AN30: 12 | AO30: ㎜ | AT30: 内装 | AU30: ボード | AY30: ― | AZ30: 種別 | BA30: 石膏ボード | BE30: t= | BF30: 12.5 | BH30: 不燃
Q31: 作業計画書の作成 | AA31: 必要 | AE31: 打放型枠 | AI31: ― | AJ31: 種別 | AK31: パネコート | AM31: t= | AN31: 12 | AO31: ㎜ | AY31: ― | AZ31: 種別 | BA31: 石膏ボード | BE31: t= | BF31: 9.5 | BH31: 準不燃
C32: 高所作業車を用いる作業（安衛則194条の9） | O32: ― | AD32: 鉄骨 | AE32: 角形鋼管 | AI32: ― | AJ32: 規格 | AK32: 柱 | AL32: STKR | AQ32: 10 | AS32: t | AU32: 耐火間仕切 | AY32: ― | AZ32: 品名・メーカー
B33: 設置届 機械等 | C33: 10ｍ以上で、かつ60日以上設置の足場 | O33: ― | Q33: 60日以上設置のつり足場、張出し足場 | AA33: ― | AE33: 型鋼 | AI33: ― | AJ33: 規格 | AK33: 柱/大梁 | AM33: SN | AN33: 小梁/他 | AP33: SS | AQ33: 12.5 | AS33: t | AU33: ＯＡフロア | AY33: ― | AZ33: 種別 | BA33: 置敷型 | BC33: H＝ | BD33: 50 | BE33: パネル材料 | BG33: 樹脂
C34: 3.5ｍ以上の型枠支保工 | O34: ― | Q34: 機械等設置届（着工30日前） | AA34: 必要 | AE34: 鋼板 | AI34: ― | AJ34: 規格 | AK34: ベース/ガセットPL等 | AO34: SS～SN | AQ34: 12.5 | AS34: t
C35: 高さ及び長さがそれぞれ10ｍ以上の架設通路（足場の階段等） | O35: ― | AE35: 接合部 | AI35: ― | AJ35: 高力ボルト | AL35: 規格 | AM35: S10T | AQ35: 現場溶接 | AR35: 無 | AT35: フェンス 舗装／ | AU35: 改修工法等 | AY35: ― | AZ35: 種別 | BA35: 新設
B36: 計画届 建設工事 | C36: 高さ31ｍを超える建築物・工作物の建設・改造・解体 | O36: ― | Q36: 廃棄物焼却炉、集じん機等の設備の解体 | AA36: ― | AE36: 柱脚固定 | AI36: ― | AJ36: 方法 | AK36: 露出 | AN36: 露出柱脚 | AP36: 品名 | AQ36: ベースパック | AU36: アスファルト | AY36: ― | AZ36: 表層 | BA36: t= | BB36: 50 | BC36: ㎜ | BD36: 基層 | BE36: t= | BF36: 100 | BG36: ㎜
C37: 高さ・深さが10ｍ以上の掘削工事 | O37: ― | Q37: 建設工事計画届（着工14日前） | AA37: 必要 | AE37: 工場グレード | AI37: ― | AJ37: グレード区分 | AM37: Ｍ | AN37: 製品検査 | AP37: 必要 | AU37: 路盤 | AY37: ― | AZ37: 上層路盤 | BB37: t= | BC37: 50 | BD37: ㎜ | BE37: 下層路盤 | BG37: t= | BH37: 150 | BI37: ㎜
C38: 石綿の除去作業（レベル1、レベル2） | O38: ― | AE38: 超音波探傷試験 | AI38: ― | AJ38: 第三者 | AL38: 必要 | AN38: 工場自主検査確認 | AR38: 必要 | AU38: フェンス | AY38: ― | AZ38: 種別 | BA38: ネットフェンス | BD38: H＝ | BE38: 1800 | BG38: 基礎 | BH38: 独立PC
A39: 大気汚染防止法 | D39: 石綿の除去作業（レベル1、レベル2） | O39: ― | Q39: 特定粉じん排出等作業実施届（着工14日前） | AA39: 必要 | AE39: ミルシート | AI39: ― | AJ39: 入手 | AK39: 必要 | AU39: 門扉 | AY39: ― | AZ39: 品名・メーカー | BF39: ＪＦＥ建材
AE40: 建方検討会 | AI40: ― | AJ40: 必要
A41: 着工前検討事項 | AT41: 電気 | AU41: キュービクル | AY41: ― | AZ41: 容量 | BA41: 動力 | BB41: 150 | BC41: KVA | BE41: 電灯 | BF41: 100 | BG41: KVA
A42: 請負代金500万円以上、ＡＢグレード | I42: ― | J42: 着工前安全衛生会議 | N42: 必要 | O42: 請負代金1,000万円以上のＡグレード | W42: ― | X42: 施工計画書作成 | AB42: 必要 | AD42: 防水 | AE42: 屋根防水 | AI42: ― | AJ42: 種別 | AK42: シート防水 | AN42: 品名・メーカー | AP42: 田島ルーフィング | AU42: 分電盤 | AY42: ― | AZ42: 動力盤設置 | BB42: 有 | BD42: 電灯盤設置 | BF42: 無
A43: 請負代金500万円以上、ＡＢグレード、火気使用 | I43: ― | J43: リスクアセスメント | N43: 必要 | O43: 安全対策費 | R43: 見積時 | T43: =#REF! ->  | V43: 円 | W43: 受注時 | Y43: =SUM(T43) ->  | AA43: 円 | AB43: 良 | AE43: 庇防水 | AI43: ― | AJ43: 種別 | AK43: ウレタン塗膜防水 | AN43: 品名・メーカー | AU43: 自火報 | AY43: ― | AZ43: 受信機 | BB43: 既存盤改修 | BE43: 感知器 | BG43: 定温式（熱感）
A44: 請負代金500万円以上 | I44: ― | J44: 実行予算検討書作成 | N44: 必要 | O44: 現場着工予定日 | R44: 2025-10-08 | U44: 準備期間 | W44: 十分 | AE44: 貯水槽等防水 | AI44: ― | AJ44: 種別 | AK44: FRP防水 | AN44: 品名・メーカー
AE45: 水張試験 | AI45: ― | AJ45: 不要 | AT45: 給排水／ガス | AU45: 受水槽 | AY45: ― | AZ45: 種別 | BA45: ＦＲＰ断熱複合板 | BD45: 方式 | BE45: 加圧給水 | BG45: 容量 | BH45: 40 | BI45: ㎥
A46: コメント欄 | AE46: シーリング | AI46: ― | AJ46: ALC目地 | AL46: ポリウレタン | AO46: 改修仕様 | AQ46: 打替 | AU46: 架空配管 | AY46: ― | AZ46: 管種 | BA46: 給水 | BD46: 排水 | BG46: その他
A47: 担当者 | B47: -1 | C47: 作業時･資機材搬出入時での第三者との接触防止（周囲の確認）。 | AI47: ― | AJ47: 建具廻り | AL47: 変成シリコン | AO47: 改修仕様 | AQ47: 打増 | AU47: ガス供給 | AY47: ― | AZ47: 種別 | BA47: 都市ガス
B48: -2 | C48: 工具類の使用前点検の実施と適正使用の徹底。 | AI48: ― | AJ48: その他 | AL48: 変成シリコン | AO48: 改修仕様 | AQ48: 打増
B49: -3 | AT49: 空調 | AU49: 室外機 | AY49: ― | AZ49: 台数 | BA49: 2 | BB49: 台 | BC49: 設置位置 | BE49: 屋上 | BG49: 耐塩仕様 | BI49: 有
C50: 注意事項または質疑事項 | AD50: 屋根及び樋 | AE50: 折板葺 | AI50: ― | AJ50: 種別 | AK50: GL鋼鈑（素地） | AN50: ｔ＝ | AO50: 0.6 | AP50: ㎜ | AQ50: 裏打材 | AS50: 無 | AU50: 室内機 | AY50: ― | AZ50: 種別 | BA50: 天カセ
A51: ＳＭ／Ｔ長 | B51: -1 | AE51: その他葺材 | AI51: ― | AJ51: 種別 | AN51: 品名・メーカー
B52: -2 | AE52: タイトフレーム | AI52: ― | AJ52: 有 | AL52: ＠ | AM52: 1200 | AT52: 換気 | AU52: 天井扇 | AY52: ― | AZ52: 風量 | BB52: ㎥ | BC52: 静圧 | BE52: Pa
B53: -3 | AE53: 母屋 | AI53: ― | AJ53: C－100×50×20×2.3 | AO53: ＠ | AP53: 600 | AU53: 有圧扇 | AY53: ― | AZ53: 風量 | BB53: ㎥ | BC53: 静圧 | BE53: Pa
A54: 安全Ｇ長 | B54: -1 | C54: 見積時のコメント遵守で作業お願いします。 | AE54: 軒樋 | AI54: ― | AJ54: 種別 | AK54: 硬質塩ビ | AO54: 伸縮継手 | AQ54: 不要 | AU54: 全熱交換器 | AY54: ― | AZ54: 品名・メーカー
B55: -2 | AE55: 竪樋 | AI55: ― | AJ55: 種別 | AK55: 硬質塩ビ | AO55: 伸縮継手 | AQ55: 不要 | AU55: 給気口、排気口 | AY55: ― | AZ55: ＦＤ | BA55: 必要
B56: -3
A57: 建設Ｇ長 | B57: -1 | C57: コメントの順守
B58: -2 | AD58: 回答欄（担当者・ＳＭまたは建設Ｇ長回答）
B59: -3 | AD59: -1
A60: DA D / ＧＡ | B60: -1 | AD60: -2
B61: -2 | AD61: -3
B62: -3 | AD62: -4
B63: -4 | AD63: -5
A64: 追加コメント欄
A65: 担当者 | B65: -4
B66: -5
B67: -6
B68: -7
C69: 注意事項または質疑事項
A70: 建設Ｇ長 | B70: -4
B71: -5
B72: -6
B73: -7
A74: DA D / ＧＡ | B74: -5
B75: -6
B76: -7
B77: -8

Sheet 受注原価 (hidden)
A1: （標準様式を一部改訂）
R2: 決裁 | T2: 合議 | X2: 立案/起票
A3: 見積原価内訳表 | R3: Ｄ/ＧＡ | T3: ＤＡ | V3: 安全Ｇ長 | X3: 建設Ｇ長 | Z3: Ｔ長/ＳＭ | AB3: 見積担当
R4: =#REF! ->  | T4: =#REF! ->  | V4: =#REF! ->  | X4: =#REF! ->  | Z4: =#REF! ->  | AB4: =#REF! -> 
B7: 工事名称 | F7: =#REF! ->  | V7: 見積番号 | Y7: =#REF! -> 
B8: 発注者 | F8: =#REF! ->  | H8: =#REF! ->  | K8: 工期/納期 | N8: =#REF! ->  | Q8: ～ | R8: =#REF! ->  | V8: 工事番号 | Y8: =#REF! -> 
A9: 工事概要 | B9: 施工場所 | F9: =#REF! ->  | I9: =#REF! ->  | K9: =#REF! ->  | V9: 引渡期限 | Y9: =#REF! -> 
B10: 概略仕様 | F10: 検査棟及び製品保管庫の新設工事 | V10: 売上高 | Y10: 150000000 | AC10: 円
V11: 客先特別条件
AC16: 単位：円
A17: 区分 | B17: 仕入先 | G17: 発注内容 | O17: 数 量 | Q17: 単位 | S17: 単価 | V17: 金 額 | Z17: 備考欄
A18: 材料費 | B18: ○○社 | G18: パイプ | O18: 1 | Q18: 式 | S18: 300000 | V18: =SUM(O18*S18) -> 300000
B19: ○○社 | G19: ○○ | O19: 10 | Q19: 個 | S19: 5000 | V19: =SUM(O19*S19) -> 50000
V20: =SUM(O20*S20) -> 0
V21: =SUM(O21*S21) -> 0
A22: 小 計 | V22: =SUM(V18:Y21) -> 350000
A23: 工数費 | B23: 作業内容 | O23: 数 量 | Q23: 単位 | S23: 単価 | V23: 金 額
B24: 現場管理費 | O24: 2400 | Q24: ｈ | S24: 8000 | V24: =SUM(O24*S24) -> 19200000
B25: 見積書作成 | O25: 80 | Q25: ｈ | S25: 8000 | V25: =SUM(O25*S25) -> 640000
V26: =SUM(O26*S26) -> 0
V27: =SUM(O27*S27) -> 0
A28: 小 計 | V28: =SUM(V24:Y27) -> 19840000
A29: 外注費 | B29: 外注先(予定） | G29: 許可業種 | J29: 発注内容 | O29: 数 量 | Q29: 単位 | S29: 単価 | V29: 金 額
B30: ○○社 | G30: 屋根工事 | J30: ○○工事 | O30: 1 | Q30: 式 | S30: 115000000 | V30: =SUM(O30*S30) -> 115000000
V31: 0
V32: 0
V33: 0
V34: 0
V35: 0
V36: 0
A40: 小 計 | V40: =SUM(V30:Y39) -> 115000000
A41: 現場経費 | B41: 仕入先 | G41: 発注内容 | O41: 数 量 | Q41: 単位 | S41: 単価 | V41: 金 額
B42: ○○社 | G42: ○○現場消耗品 | O42: 100 | Q42: 個 | S42: 5000 | V42: =SUM(O42*S42) -> 500000
V43: =SUM(O43*S43) -> 0
V44: 0
V45: 0
A46: 小 計 | V46: =SUM(V42:Y45) -> 500000
A47: 安全対策費 | B47: 内容(作業内容・購入品など) | O47: 数 量 | Q47: 単位 | S47: 単価 | V47: 金 額
B48: 安全施設バリケード購入 | O48: 100 | Q48: 個 | S48: 5000 | V48: =SUM(O48*S48) -> 500000
O49: 1 | Q49: 式 | S49: 10000000 | V49: =SUM(O49*S49) -> 10000000
V50: =SUM(O50*S50) -> 0
V51: 0
V52: 0
A53: 小 計 | V53: =SUM(V48:Y52) -> 10500000
A54: 粗利益 | B54: 外注費等合計① | J54: =SUM(V22+V40+V46+V53) -> 126350000 | N54: 売上利益 | O54: 売上原価合計（a） | V54: =SUM(V22+V28+V40+V46+V53) -> 146190000 | Z54: ※下欄に利益計画または業績検討会時の想定を記載すること。
B55: 売上高（ｂ） | J55: =SUM(Y10) -> 150000000 | O55: 売上高（ｂ） | V55: =SUM(Y10) -> 150000000
B56: 粗利益（ｂ）-① | J56: =J55-J54 -> 23650000 | O56: 売上利益（ｂ）-（a） | V56: =V55-V54 -> 3810000
B57: 粗利益率 | J57: =J56/J55 -> 0.1576666667 | O57: 売上利益率 | V57: =V56/V55 -> 0.0254
A59: 利益計画 | H59: 売上 | L59: 150000000 | P59: 粗利益 | T59: 25000000 | W59: 粗利益率 | AA59: =SUM(T59/L59)*100 -> 16.66666667 | AC59: ％

Sheet 見積提出 (hidden)
A1: 見積提出金額検討書 | O1: 実施日
A2: 工事名称 | B2: =#REF! ->  | F2: 工期 | G2: 2025/10/末～ 2026/3/末 | I2: 参加者 | J2: ＧＡ | K2: ＤＡ | L2: 財務 | M2: 調達 | N2: 京浜Ｇ長 | O2: Ｇ長 | P2: Ｔ長/ＳＭ | Q2: 担当
A4: 引合経緯 | B4: 2025年度の第2工場耐震補強計画について，過去の実績より要求元の横保全より予算取りの協力依頼があった。（執行部は技建G） | Q4: 競争入札
A5: 工事概要 | B5: 横浜第2工場の耐震工事（2層+2層+2層）鉄骨総量16.8t（5,495千円/ｔ） （別途図面による）
A6: 備 考 | B6: 2024年度第2工場耐震工事（2,850千円/t）2023年度第2工場耐震工事（2,996千円/t）
A7: ※開催金額：\30,000千円以上 | Q7: 単位：円
F8: 工種 | I8: 協力会社 | L8: 見積金額 | O8: 特記事項
A9: 工事場所 | B9: =#REF! ->  | F9: 仮設リース | I9: 未定 | L9: 300000 | O9: 仮設事務所類
A10: 見積工番 | B10: =#REF! ->  | F10: 警備会社 | I10: オリエンタル警備 | L10: 1575000 | O10: 75日×21000
A11: 発注者 | B11: =#REF! ->  | F11: 鉄骨工事 | I11: ㈱小原工務店 | L11: 74500000 | O11: 鉄骨 17t
A12: 発注部門 | B12: =#REF! ->  | F12: 配管工事（既設切り回し） | I12: ㈲横浜丸和産機 | L12: 700000 | O12: アルゴン・エアー配管切り回し
A13: 発注担当者 | B13: =#REF! ->  | F13: 電気設備工事（既設切り回し） | I13: ㈱江電社 | L13: 400000 | O13: 電気配管切り回し
A14: 受注形態 | B14: =#REF! ->  | F14: 発生材（産廃処分費） | I14: ワイエムエコフューチャー | L14: 120000 | O14: 4tコンテナ
A15: 工事場所 | B15: =#REF! ->  | D15: =#REF! ->  | F15: 安全設備・資材購入費 | I15: 未定 | L15: 100000
A16: 構外 | B16: =#REF! ->  | F16: 予備費（インフラ切り回し・試験費等） | I16: 未定 | L16: 1000000
A17: 見積担当者 | B17: =#REF! ->  | C17: =#REF! -> 
A19: ※見積決済時は参加者と実施日を記載し
A20: この書類を添付すること。
F21: 合計 | L21: =SUM(L9:N20) -> 78695000
A22: 利益計画
A23: 売上高 | C23: 90000000 | F23: 見積書金額 | I23: 92800000 | L23: 工数時間 | O23: 1200
A24: 外注費 | C24: 70200000 | F24: 出し値 | I24: 101000000 | L24: 工数金額 | O24: =O23*8000 -> 9600000
A25: 粗利益 | C25: =C23-C24 -> 19800000 | F25: 粗利益 | I25: =I24-L21 -> 22305000 | K25: =IF(I25<C25,"NG","OK") -> OK | L25: 利益 | O25: =I24-L21-O24 -> 12705000
A26: 粗利率 | C26: =C25/C23 -> 0.22 | F26: 粗利率% | I26: =I25/I24 -> 0.2208415842 | K26: =IF(I26<C26,"NG","OK") -> OK | L26: 利益率 | O26: =O25/I24 -> 0.1257920792

Sheet 実行予算 (hidden)
P1: 工事名 | S1: =表紙!F17 -> ５階５２６号室トイレ設置工事 | AC1: 工事場所 | AF1: =#REF! ->  | AI1: =#REF! ->  | AJ1: =#REF! ->  | AO1: 検討申請日 | AQ1: 2023-04-01
B2: 実行予算検討書 | P2: 契約受注金額 | S2: =表紙!F14 -> 0 | V2: 受注決裁時 | W2: 受注金額計 | Z2: =#REF! ->  | AC2: 売上原価 | AF2: =SUM(Z3+Z5) ->  | AI2: 発注者 | AL2: =#REF! ->  | AN2: 部門 | AO2: =#REF! ->  | AQ2: 担当 | AR2: =#REF! -> 
P3: 変更① | R3: - | S3: ― | W3: 外注費等 | Z3: =#REF! ->  | AC3: 売上利益 | AF3: =SUM(Z2-AF2) ->  | AI3: 客先契約工期 | AL3: =#REF! ->  | AO3: ～ | AP3: =#REF! -> 
P4: 変更② | R4: - | S4: ― | W4: 粗利益 | Z4: =SUM(Z2-Z3) ->  | AC4: 利益率 | AF4: 粗利 | AG4: =SUM(Z4/Z2) ->  | AI4: 受注決裁日 | AO4: 工事番号 | AQ4: =#REF! -> 
P5: 計 | S5: =SUM(S2:U4) -> 0 | W5: 工数費 | Z5: =#REF! ->  | AF5: 売上 | AG5: =SUM(AF3/Z2) ->  | AI5: 受注形態 | AL5: =#REF! ->  | AN5: 担当者 | AP5: =#REF! ->  | AQ5: 建設 | AR5: =#REF! -> 
AS6: 単位：円
A7: NO | B7: 工事科目 | F7: 決定実行予算 （ａ) | I7: （ｂ)－(ａ) | L7: 建設Ｇ 実行予算案 （ｂ) | O7: 事業部 実行予算案 (ｃ) | R7: (ｂ)－(ｃ) | U7: 建設Ｇ実行予算案の根拠 | AB7: 実行予算策定の協議内容
AB9: 事業部照会または要請 | AK9: 建設Ｇ回答
A10: 1 | I10: =SUM(L10-F10) -> 0 | R10: =SUM(L10-O10) -> 0
A12: 2 | I12: =SUM(L12-F12) -> 0 | R12: =SUM(L12-O12) -> 0
A14: 3 | I14: =SUM(L14-F14) -> 0 | R14: =SUM(L14-O14) -> 0
A16: 4 | I16: =SUM(L16-F16) -> 0 | R16: =SUM(L16-O16) -> 0
A18: 5 | I18: =SUM(L18-F18) -> 0 | R18: =SUM(L18-O18) -> 0
A20: 6 | I20: =SUM(L20-F20) -> 0 | R20: =SUM(L20-O20) -> 0
A22: 7 | I22: =SUM(L22-F22) -> 0 | R22: =SUM(L22-O22) -> 0
A24: 8 | I24: =SUM(L24-F24) -> 0 | R24: =SUM(L24-O24) -> 0
A26: 9 | I26: =SUM(L26-F26) -> 0 | R26: =SUM(L26-O26) -> 0
A28: 10 | I28: =SUM(L28-F28) -> 0 | R28: =SUM(L28-O28) -> 0
A30: 11 | I30: =SUM(L30-F30) -> 0 | R30: =SUM(L30-O30) -> 0
A32: 計 | F32: =SUM(F10:H31) -> 0 | I32: =SUM(I10:K31) -> 0 | L32: =SUM(L10:N31) -> 0 | O32: =SUM(O10:Q31) -> 0 | R32: =SUM(R10:T31) -> 0 | U32: 実行予算検討書 活用のルール | Y32: 建設Ｇは、受注金額500万円以上の場合に、注文書受領後速やかに本実行予算検討書を作成し、Ｇ長が実行予算案の承認後、事業部と協議し、事業部長の承認を得ること。 | AM32: 予算案 | AN32: 建設Ｇ長 | AP32: Ｔ長/ＳＭ | AR32: 担当
AN33: =#REF! ->  | AP33: =#REF! ->  | AR33: =#REF! -> 
AN35: 2025-04-30 | AP35: 2025-04-30 | AR35: 2025-04-30
A36: 実行予算決定経緯 | B36: 項目 | E36: 受注金額 | H36: 外注費等 | K36: 工数費 | Q36: 工数計算 | U36: 売上原価 | X36: 粗利益 | AA36: 粗利益率 | AC36: 売上利益 | AF36: 売上利益率 | AH36: 改善率 | AJ36: 決裁 | AL36: 合議 | AP36: 立案/起票
B37: 計画外 | K37: =SUM(O38*8000) -> 0 | O37: 時間 | Q37: 工期4か月×20日×3.5ｈ | U37: =SUM(H37+K37) -> 0 | X37: =SUM(E37-H37) -> 0 | AA37: =SUM(X37/E37) ->  | AC37: =SUM(E37-U37) -> 0 | AF37: =SUM(AC37/E37) ->  | AH37: ― | AJ37: Ｄ/ＧＡ | AL37: ＤＡ | AN37: 京浜Ｇ長 | AP37: 建設Ｇ長 | AR37: 担当
N38: （ | P38: h） | AJ38: =#REF! ->  | AL38: =#REF! ->  | AN38: =#REF! ->  | AP38: =#REF! ->  | AR38: =#REF! -> 
B39: 受注決裁 | K39: =SUM(O40*8000) -> 0 | O39: 時間 | Q39: 工期3か月×20日×3.5ｈ | U39: =SUM(H39+K39) -> 0 | X39: =SUM(E39-H39) -> 0 | AA39: =SUM(X39/E39) ->  | AC39: =SUM(E39-U39) -> 0 | AF39: =SUM(AC39/E39) ->  | AH39: ―
N40: （ | P40: h） | AJ40: 2025-04-01 | AL40: 2025-04-01 | AN40: 2025-04-01 | AP40: 2025-04-01 | AR40: 2025-04-01
B41: 建設Ｇ | H41: =SUM(L32) -> 0 | K41: =SUM(O42*8000) -> 0 | O41: 時間 | Q41: 工期3か月×20日×3.5ｈ | U41: =SUM(H41+K41) -> 0 | X41: =SUM(E41-H41) -> 0 | AA41: =SUM(X41/E41) ->  | AC41: =SUM(E41-U41) -> 0 | AF41: =SUM(AC41/E41) ->  | AH41: =SUM(AF41-AF39) ->  | AJ41: 京浜建設Ｇの場合、建設Ｇ長欄にはチーム長が記名する
N42: （ | P42: h）
B43: 決定実行予算 | H43: =SUM(F32) -> 0 | K43: =SUM(O44*8000) -> 0 | O43: 時間 | Q43: 工期3か月×20日×3.5ｈ | U43: =SUM(H43+K43) -> 0 | X43: =SUM(E43-H43) -> 0 | AA43: =SUM(X43/E43) ->  | AC43: =SUM(E43-U43) -> 0 | AF43: =SUM(AC43/E43) ->  | AH43: =SUM(AF43-AF39) -> 
N44: （ | P44: h）
D96: 110 | F96: 1400
C114: 洗面所・ﾄｲﾚ t2.0 | D114: 100
C115: 特別仮眠室 t2.0 | D115: 10 | F115: 2200
D116: 670 | F116: 2500
D117: 380
C118: t=12.5 両面2枚貼り | D118: 350 | F118: 2000
C119: t=40 | D119: 175 | F119: 750
C120: t=12.5 | D120: 415 | F120: 1000
C121: t=12.5 | D121: 670 | F121: 1000
F122: 1500
C123: 普及品 | D123: 1420 | F123: 800
D124: 400
C125: t=9.5 | D125: 775 | F125: 1400
C126: 特別仮眠室 t=9.5 | D126: 75 | F126: 850
C127: 特別仮眠室 普及品 | D127: 75 | F127: 800
D128: 50
D129: 31 | E129: ヶ所 | F129: 9000
D139: 92
D141: 90
C142: ﾏｯﾄﾚｽ、ﾍﾞｯﾄﾊﾟｯﾄ共 | D142: 62 | E142: 床 | F142: 405000
C143: 0812 | D143: 6 | E143: ヶ所 | F143: 165000
C144: GRS1620AVCC | D144: 1 | E144: ヶ所 | F144: 460000
C145: S-1SN150B0B | D145: 2 | E145: ヶ所 | F145: 103000
C146: S-GRC-157 | D146: 2 | E146: ヶ所 | F146: 447000
D148: 9

Sheet 要求決裁 (hidden)
Y1: 工事名 | AB1: =#REF! ->  | AL1: 工事場所 | AO1: =#REF! ->  | AR1: =#REF! ->  | AS1: =#REF! ->  | AW1: 要求申請日 | AZ1: 2025-07-04
B2: 要求決裁書 | V2: 建設Ｇ記載 | Y2: 契約受注金額 | AB2: =#REF! ->  | AE2: 受注決裁時 | AF2: 受注金額計 | AI2: =SUM(AB5) ->  | AL2: 売上原価 | AO2: =SUM(AI3+AI5) ->  | AR2: 発注者 | AU2: =#REF! ->  | AW2: 部門 | AX2: =#REF! ->  | AZ2: 担当 | BA2: =#REF! -> 
B3: 実行予算書 | V3: 管理Ｇ記載 | Y3: 変更① | AA3: 2022-01-15 | AB3: ― | AF3: 外注費等 | AI3: =#REF! ->  | AL3: 売上利益 | AO3: =SUM(AI2-AO2) ->  | AR3: 客先契約工期 | AU3: =#REF! ->  | AX3: ～ | AY3: =#REF! -> 
B4: 原価管理表 | Y4: 変更② | AA4: 2022-01-15 | AB4: ― | AF4: 粗利益 | AI4: =SUM(AI2-AI3) ->  | AL4: 利益率 | AO4: 粗利 | AP4: =SUM(AI4/AI2) ->  | AR4: 受注決裁日 | AU4: 2025-07-04 | AX4: 工事番号 | AZ4: =#REF! ->  | BE4: 【無許可業者への発注防止】
Y5: 計 | AB5: =SUM(AB2:AD4) ->  | AF5: 工数費 | AI5: =#REF! ->  | AO5: 売上 | AP5: =SUM(AO3/AI2) ->  | AR5: 受注形態 | AU5: =#REF! ->  | AW5: 担当者 | AY5: =#REF! ->  | AZ5: 建設 | BA5: =#REF! ->  | BE5: （同一下請負業者への複数回発注における5,000千円（税込）超過のチェック）
BB6: 単位：円
A7: NO | B7: 建設工事の種類等 | N7: 実行予算（a） | R7: 見積先下請負業者 | Y7: 出来高払 | Z7: 仮注文書等の有無 | AC7: 発注額 | AI7: 実績外注費等 | AL7: 予実差異 | AO7: 要求（決裁/検討） | AU7: 要求（合議） | AY7: 要求（立案/起票） | BE7: 5000000 | BF7: 👈税込金額（ここに基準となる税込み金額を入力してください）
B8: （具体的な工事内容） | M8: (今回発注希望額) | R8: （※は決定発注先） | Z8: 注文書発行日 | AC8: 今回発注額（b） | AF8: 今後予定額(C） | AI8: （d）＝（b）+（C） | AL8: （e）＝（a）-（d） | AO8: Ｄ | AQ8: ＧＡ | AS8: Ｇ長 | AU8: ＤＡ | AW8: Ｔ長/ＳＭ | AY8: 担当 | BA8: 起票 | BE8: □セルは，計算式が入っております。削除しないでください。
A9: 1 | B9: 建具工事 | N9: 150000 | R9: コメント | Y9: 無 | Z9: 仮注文書 | AB9: 無 | AC9: 特記事項 | AD9: 無 | AE9: 出来高払い | AI9: 許可業種 | AJ9: 解体 | AO9: 渡邊 | AQ9: 渡邊 | AS9: 宮川 | AU9: 木村 | AW9: 佐野 | AY9: 佐野 | BA9: 熊谷 | BE9: =SUMIF($S$9:$S$46,$S9,$AI$9:$AK$46) -> 0
B10: ( | C10: 手摺補修 | L10: ) | M10: ( | N10: 150000 | Q10: ) | Z10: 変更確認書 | AB10: 無 | BE10: 0
B11: 下請負契約工期 | G11: 2025-07-15 | I11: ～ | J11: 2025-08-31 | R11: ※ | AF11: =IF(AC11="",N9,) -> 150000 | AI11: =IF(AC11="",N9,(AC11+AF11)) -> 150000 | AL11: =IF(AC11="",0,(N9-AI11)) -> 0 | BE11: 0
A12: 2 | R12: コメント | Y12: 無 | Z12: 仮注文書 | AC12: 特記事項 | AI12: 許可業種 | AJ12: とび・土工 | BE12: 0
B13: ( | L13: ) | M13: ( | Q13: ) | Z13: 変更確認書 | BE13: 0
B14: 下請負契約工期 | I14: ～ | R14: ※ | AF14: =IF(AC14="",N12,) -> 0 | AI14: =IF(AC14="",N12,(AC14+AF14)) -> 0 | AL14: =IF(AC14="",0,(N12-AI14)) -> 0 | BE14: 0
A15: 3 | R15: コメント | Y15: 無 | Z15: 仮注文書 | AC15: 特記事項 | AI15: 許可業種 | AJ15: とび・土工 | BE15: 0
B16: ( | L16: ) | M16: ( | Q16: ) | Z16: 変更確認書 | BE16: 0
B17: 下請負契約工期 | I17: ～ | R17: ※ | AF17: =IF(AC17="",N15,) -> 0 | AI17: =IF(AC17="",N15,(AC17+AF17)) -> 0 | AL17: =IF(AC17="",0,(N15-AI17)) -> 0 | BE17: 0
A18: 4 | R18: コメント | Y18: 無 | Z18: 仮注文書 | AC18: 特記事項 | AI18: 許可業種 | AJ18: とび・土工 | BE18: 0
B19: ( | L19: ) | M19: ( | Q19: ) | Z19: 変更確認書 | BE19: 0
B20: 下請負契約工期 | I20: ～ | R20: ※ | AF20: =IF(AC20="",N18,) -> 0 | AI20: =IF(AC20="",N18,(AC20+AF20)) -> 0 | AL20: =IF(AC20="",0,(N18-AI20)) -> 0 | BE20: 0
A21: 5 | R21: コメント | Y21: 無 | Z21: 仮注文書 | AC21: 特記事項 | AI21: 許可業種 | AJ21: とび・土工 | BE21: 0
B22: ( | L22: ) | M22: ( | Q22: ) | Z22: 変更確認書 | BE22: 0
B23: 下請負契約工期 | I23: ～ | R23: ※ | AF23: =IF(AC23="",N21,) -> 0 | AI23: =IF(AC23="",N21,(AC23+AF23)) -> 0 | AL23: =IF(AC23="",0,(N21-AI23)) -> 0 | BE23: 0
A24: 6 | R24: コメント | Y24: 有 | Z24: 仮注文書 | AC24: 特記事項 | AI24: 許可業種 | AJ24: 鋼構造物 | BE24: 0
B25: ( | L25: ) | M25: ( | Q25: ) | Z25: 変更確認書 | BE25: 0
B26: 下請負契約工期 | I26: ～ | R26: ※ | AF26: =IF(AC26="",N24,) -> 0 | AI26: =IF(AC26="",N24,(AC26+AF26)) -> 0 | AL26: =IF(AC26="",0,(N24-AI26)) -> 0 | BE26: 0
A27: 7 | M27: 7500000 | R27: コメント | Y27: 無 | Z27: 仮注文書 | AC27: 特記事項 | AI27: 許可業種 | AJ27: 屋根 | BE27: 0
B28: ( | L28: ) | M28: ( | Q28: ) | Z28: 変更確認書 | BE28: 0
B29: 下請負契約工期 | I29: ～ | R29: ※ | AF29: =IF(AC29="",N27,) -> 0 | AI29: =IF(AC29="",N27,(AC29+AF29)) -> 0 | AL29: =IF(AC29="",0,(N27-AI29)) -> 0 | BE29: 0
A30: 8 | M30: 6500000 | R30: コメント | Y30: 無 | Z30: 仮注文書 | AC30: 特記事項 | AI30: 許可業種 | BE30: 0
B31: ( | L31: ) | M31: ( | Q31: ) | Z31: 変更確認書 | BE31: 0
B32: 下請負契約工期 | I32: ～ | R32: ※ | AF32: =IF(AC32="",N30,) -> 0 | AI32: =IF(AC32="",N30,(AC32+AF32)) -> 0 | AL32: =IF(AC32="",0,(N30-AI32)) -> 0 | BE32: 0
A33: 9 | R33: コメント | Y33: 無 | Z33: 仮注文書 | AC33: 特記事項 | AI33: 許可業種 | AJ33: 経費払い | BE33: 0
B34: ( | L34: ) | M34: ( | Q34: ) | Z34: 変更確認書 | BE34: 0
B35: 下請負契約工期 | I35: ～ | R35: ※ | AF35: =IF(AC35="",N33,) -> 0 | AI35: =IF(AC35="",N33,(AC35+AF35)) -> 0 | AL35: =IF(AC35="",0,(N33-AI35)) -> 0 | BE35: 0
A36: 10 | M36: 0 | R36: コメント | Y36: 無 | Z36: 仮注文書 | AC36: 特記事項 | AI36: 許可業種 | AJ36: 経費払い | BE36: 0
B37: ( | L37: ) | M37: ( | Q37: ) | Z37: 変更確認書 | BE37: 0
B38: 下請負契約工期 | I38: ～ | R38: ※ | AF38: =IF(AC38="",N36,) -> 0 | AI38: =IF(AC38="",N36,(AC38+AF38)) -> 0 | AL38: =IF(AC38="",0,(N36-AI38)) -> 0 | BE38: 0
A39: 計 | N39: =SUM(N9,N12,N15,N18,N21,N24,N27,N30,N33,N36) -> 150000 | R39: 注1．経費支払伝票にて決裁を受ける工事等も実行予算策定時には予定外注費等(ａ)を記載し、請求額決定時は都度、その額を今回発注額(ｂ)に記載すること。 | AC39: =SUM(AC11,AC14,AC17,AC20,AC23,AC26,AC29,AC32,AC35,AC38) -> 0 | AF39: =SUM(AF11,AF14,AF17,AF20,AF23,AF26,AF29,AF32,AF35,AF38) -> 150000 | AI39: =SUM(AI11,AI14,AI17,AI20,AI23,AI26,AI29,AI32,AI35,AI38) -> 150000 | AL39: =SUM(AL9:AN38) -> 0 | AO39: 注3．発注希望額に応じた決裁経路にてあらかじめ承認者名を入力すること。
AC40: 注2．１業者に対する発注希望金額の合計が５百万円以上（税込）、または法適用外、経費払いの場合に許可業種等を記載すること。
AL41: =SUM(AL39/N39) -> 0
A42: 実行予算 | D42: 承認/立案/起票 | P42: （予実管理） 原価管理表 | S42: 受注金額 | W42: 外注費等 | AA42: 工数費 | AD42: 売上原価 | AG42: 粗利益 | AJ42: 粗利益率 | AL42: 粗利益改善 | AN42: 売上利益 | AQ42: 売上利益率 | AS42: 売上利益改善 | AU42: 工事完成報告 （最終工事原価） | AY42: 実績工期
D43: 建設Ｇ長 | H43: Ｔ長/ＳＭ | M43: 担当 | S43: 当初 | T43: =SUM(AI2) ->  | W43: 予定 | X43: =SUM(N39) -> 150000 | AA43: =SUM(AB44*8000) -> 16000 | AD43: =SUM(X43+AA43) -> 166000 | AG43: =SUM(T46-X43) ->  | AJ43: =SUM(AG43/T46) ->  | AL43: ― | AN43: =SUM(T46-AD43) ->  | AQ43: =SUM(AN43/T46) ->  | AS43: ― | BB43: から
D44: 宮川 | H44: 佐野 | M44: 佐野 | S44: 変更① | T44: ― | AA44: （ | AB44: 2 | AC44: h） | AU44: 宮川 | AW44: 佐野
S45: 変更② | T45: ― | W45: 実績 | X45: =SUM(AI39) -> 150000 | AA45: =SUM(AB46*8000) -> 16000 | AD45: =SUM(X45+AA45) -> 166000 | AG45: =SUM(T46-X45) ->  | AJ45: =SUM(AG45/T46) ->  | AL45: =SUM(AJ45-AJ43) ->  | AN45: =SUM(T46-AD45) ->  | AQ45: =SUM(AN45/T46) ->  | AS45: =SUM(AQ45-AQ43) ->  | BB45: まで
H46: 2025-07-04 | M46: 2025-07-04 | S46: 計 | T46: =SUM(T43:V45) ->  | AA46: （ | AB46: 2 | AC46: h）

Sheet 特定業者 (hidden)
B2: 年 月 日
E4: 発注部門 | G4: 要求部門
E5: 部門名： 調達部 | G5: 部門名：
E6: 承認 | F6: 検討 | G6: 承認 | H6: 検討
G7: 宮川 | H7: 佐野
B11: 工事名称 （品名） | C11: =#REF! -> 
B15: 業者名 （担当者名） | C15: 業者名：
B21: 理 由 | D21: 希望理由を次から選択してください。
C23: □ | D23: 実績（作業実績・販売実績が高い）
C24: □ | D24: 地域性（その地区で業者が限定的）
C25: □ | D25: 希少性（市販している会社が１社である。または、限定される）
C26: □ | D26: 製造会社の技術者（または指定業者）以外にメンテナンスできる者が存在しない
C27: □ | D27: 緊急工事や短納期のため、他に対応できる業者がいない
C28: □ | D28: お客様指定の業者
C29: ■ | D29: その他 （計画時からの協力業者）
B31: 備 考
B36: 注： | D36: 1．特定の業者とあらかじめ価格協定が締結されている場合は提出不要
D37: 2．新規発注先（発注先コード未収得先）は認められない（コード取得後実施のこと）
D38: 3．要求部門の検討・承認欄には、検討者、承認者がそれぞれ、日付、氏名を記載（印は不要）のこと
D39: 4．本紙は電子（Word）データで要求部門から発注部門に送付のこと

Sheet 仮発注 (hidden)
P1: 2025-04-01
I3: 仮発注要求決裁書
H6: 要求（決裁/検討） | L6: 要求（合議/立案/起票）
H7: Ｄ/GA | J7: ＤＡ | L7: Ｇ長 | N7: Ｔ長/ＳＭ | P7: 担当 | R7: 起票
H8: =#REF! ->  | J8: =#REF! ->  | L8: =#REF! ->  | N8: =#REF! ->  | P8: =#REF! ->  | R8: 熊谷
A11: 基本情報 | B11: 工事名称 | D11: =#REF! ->  | M11: 客先契約 工期 | O11: =#REF! ->  | Q11: ～ | R11: =#REF! -> 
B12: 工事場所 | D12: =#REF! ->  | G12: 構内 | H12: =#REF! ->  | M12: 工事番号 | O12: =#REF! ->  | R12: 受注決裁未了
B13: 発注者 | D13: ＩＨＩ | F13: 部門 | G13: =#REF! ->  | J13: 担当 | K13: =#REF! ->  | M13: 工事担当 | O13: =#REF! ->  | Q13: 建設 | R13: =#REF! -> 
A15: 仮発注の概要
A16: 発注先 | D16: ＊＊＊＊＊＊＊株式会社 | J16: 住 所 | L16: 神奈川県横浜市磯子区新中原町１番地
A17: 注文年月日 | D17: 2025-04-05 | G17: 当該工期 | I17: 2025-04-07 | K17: ～ | L17: 2023-07-20 | N17: 検査予定日 | Q17: 2025-07-18
A18: 工事内容 | D18: 仮設、屋上防水、外壁塗装工事 | N18: 許可業種 | Q18: とび・土工工事業
A19: 施工しない日 時間帯 | D19: 例）土日祝，平日（7：30～17：30） | N19: 注．正式代金の予定額の合計が５百万円以上の場合は、発注先の許可業種を記載すること。
D20: 仮注文書の交付理由
E21: □ | F21: 工事着手において工事範囲、工事仕様が未確定のため
E22: □ | F22: 元請注文書は未受領であるが、早期の工事着手が必要なため
A23: 希望代金（仮代金） | E23: ■ | F23: 材料及び作業員等の先行手配のため
A24: 4900000 | E24: □ | F24: その他
E25: （ | R25: ）
D26: 正式代金の設定時期 | L26: 正式代金の通知方法
E27: ■ | F27: 2025-05-01 | M27: ■ | N27: 正式代金の設定後、正規注文書を別途発行する。
E28: □ | F28: 下請負業者の見積書を受領後、速やかに、正式代金を設定し発注する。 | M28: □ | N28: その他
A30: 特記事項 | D30: 例1）現在、実行予算検討中
D31: 例2）現在、業者見積書検討中

Sheet 緊急工事 (hidden)
X1: 建設Ｇ長 | AA1: Ｔ長 | AD1: 担当
X2: =#REF! ->  | AA2: =#REF! ->  | AD2: =#REF! -> 
A3: 依頼先 送信先 | C3: ビルテック建商株式会社 | X3: 2025-04-14 | AA3: 2025-04-14 | AD3: 2025-04-14
C4: 営業担当 | G4: 浜津 | M4: 殿
U5: 神奈川県横浜市磯子区新中原町１番地
V6: 株式会社ＩＨＩビジネスサポート
V7: 建設事業部 京浜建設グループ
Y8: =#REF! -> 
M10: 緊急工事等
M11: （電子メール送信用）
A12: 工事名称 | E12: =#REF! ->  | W12: 工事 | Y12: 工事番号 | AC12: =#REF! -> 
A13: 工事場所 | E13: 神奈川県横浜市港南区港南台3-2-10 済生会横浜市南部病院
A14: 予定工期 | E14: 2025-04-14 | K14: ～ | L14: 2025-05-31 | R14: 原契約注文番号
A15: 具体的な 工事内容 （仕様書） | E15: 引分け戸不具合調査
A17: 請負代金 | E17: 緊急工事の全体数量等の詳細内容確定後、協議により遅延なく決定する。
A18: 請負単価 | E18: 追加、変更工事の場合は原契約の単価を適用する。
A19: 諸費用 | E19: 工事に伴う工事損料、安全対策費、宿泊交通費、現場経費、一般管理費、その他発生する諸費用については、依頼先からの見積書により、原則契約締結時に確定・合意するものとする。
A21: 工事契約 | E21: 本工事に伴う契約は、別途以下の契約部門と締結する。
E22: (予定日: | H22: 2025-04-25 | M22: ) | N22: 調達部調達グループ横浜調達チーム
A23: 支払条件 及び 支払方法 | E23: ① | F23: 建設業法対象（50日払）： | M23: 工事完成月末締め/翌月19日払い/全額現金払い
E24: ② | F24: 下請法対象： | J24: 納品月末、または工事完成月末締め/翌月27日払い/全額現金払い
E25: ③ | F25: ①②以外： | I25: 納品月末、または工事完成月末締め/翌月27日払い
F26: a | G26: 支払い金額の合計が100万円(税込)未満/月の場合 | V26: 全額現金払い
F27: b | G27: 支払い金額の合計が100万円(税込)以上/月の場合 | V27: 30％現金払い
M28: 70％ファクタリング払い（120日）または期日払い（120日）
E29: （①の50日払い対象業者は特定建設業者または資本金4,000万円以上の法人を除く）
A31: 備 考 | E31: 依頼先は全体数量等確定次第、速やかに見積書を提出のこと。
Q33: 送信先: | T33: =C3 -> ビルテック建商株式会社 | AB33: =G4 -> 浜津 | AF33: 殿
X34: Fax : | Y34: 03-5670-8808
R35: cc : | S35: 建設事業部 京浜建設グループ | AD35: 要求決裁者
R36: cc : | S36: 調達部調達グループ横浜調達チーム | AD36: 発注担当者
A38: 上記工事について承諾します。
A39: 2025年 月 日
A40: 株式会社ＩＨＩビジネスサポート
A41: 建設事業部 京浜建設グループ | K41: =#REF! ->  | O41: 殿
S42: 依頼先 | U42: =C3 -> ビルテック建商株式会社
U43: =C4 -> 営業担当 | Y43: =G4 -> 浜津 | AE43: ㊞

Sheet 契約内容 (hidden)
P1: 2025-04-01
G3: 契約内容変更確認書要求決裁書
H6: 要求（決裁/検討） | L6: 要求（合議/立案/起票）
H7: Ｄ/GA | J7: ＤＡ | L7: Ｇ長 | N7: Ｔ長/ＳＭ | P7: 担当 | R7: 起票
H8: =#REF! ->  | J8: =#REF! ->  | L8: =#REF! ->  | N8: =#REF! ->  | P8: =#REF! ->  | R8: 熊谷
A12: 基本情報 | B12: 工事名称 | D12: =#REF! ->  | M12: 客先契約 工期 | O12: =#REF! ->  | Q12: ～ | R12: =#REF! -> 
B13: 工事場所 | D13: =#REF! ->  | G13: 構内 | H13: =#REF! ->  | M13: 工事番号 | O13: =#REF! -> 
B14: 発注者 | D14: =#REF! ->  | F14: 部門 | G14: =#REF! ->  | J14: 担当 | K14: =#REF! ->  | M14: 工事担当 | O14: =#REF! ->  | Q14: 建設 | R14: =#REF! -> 
A16: 原契約内容 | B16: 発注先 | D16: ＊＊＊＊＊＊＊株式会社 | J16: 住 所 | L16: 神奈川県横浜市磯子区新中原町１番地
B17: 注文年月日 | D17: 2025-06-05 | G17: 当該工期 | I17: 2025-06-25 | K17: ～ | L17: 2025-09-25 | N17: 検査予定日 | Q17: 2025-09-15
B18: 工事内容 | D18: 仮設、屋上防水、外壁塗装工事 | N18: 許可業種 | Q18: とび・土工工事業
B19: 施工しない 日時間帯 | D19: 例）土日祝，平日（7：30～17：30） | N19: 注．正式代金の予定額の合計が５百万円以上の場合は、発注先の許可業種を記載すること。
A20: 変更に至る経緯
A22: 契約内容変更確認書の交付理由
B23: □ | C23: 追加、変更工事において工事範囲、工事仕様が未確定のため
B24: ■ | C24: 客先（発注者）都合により、工期が延長されるため | M24: （延長予定納期 | N24: 2025-12-30 | Q24: ）
B25: □ | C25: その他
B26: （ | C26: ＊＊＊＊＊＊＊＊ | R26: ）
A28: 正式追加変更代金の設定時期 | J28: 正式追加変更代金の通知方法
B29: □ | C29: 2025-12-07 | K29: □ | L29: 正式代金の設定後、正規追加変更注文書を別途発行する。
B30: □ | C30: 下請負業者の見積書を受領後、速やかに、正式代金を設定し発注する。 | K30: □ | L30: その他
B31: ■ | C31: 代金の変更なし | K31: ■ | L31: 代金の変更なし
A32: 特記事項

Sheet 納期変更 (hidden)
A1: 納期変更申出書
Q2: 2025-04-01
B3: 送付先 | M3: 送付元
B4: ＩＨＩ技建G | K4: 御中 | M4: 株式会社ＩＨＩビジネスサポート
M5: 相生 | N5: 建設Ｇ
A6: 【原契約】 | B6: 注文番号 | E6: ○○○○-0
B7: 工事名称 | E7: ＊＊＊＊＊＊事務所建屋補修工事
B8: 請負金額 | E8: 18000000
B9: 決定納期 | E9: 2025-04-01
A11: 【変更納期】 | E11: 変更前 | H11: 2025-04-01 | K11: 変更後 | N11: 2025-04-30
A12: 【変更理由】
B14: ■ | C14: 客先都合
C15: 工場の操業予定の変更により 予定納期を上記に変更させていただきます。
B20: □ | C20: 当社都合
B27: 【特記事項】
